[Event "Titled Tuesday Blitz August 22 Early 2023"]
[White "Eynullayev, Altay"]
[Black "Hulka, Valentyn"]
[WhiteFideId "13413562"]
[BlackFideId "34107061"]
[WhiteElo "2581"]
[BlackElo "2729"]
[Result "0-1"]
[Round "5"]
[TimeControl "180+1"]
[Date "2023.08.22"]
[WhiteClock "0:00:00"]
[BlackClock "0:00:04"]
[Board "57"]

1. d4 {[%clk 0:03:00]}  d5 {[%clk 0:03:00]} 2. Bf4 {[%clk 0:03:01]}  c5 {[%clk 0:03:00]} 3. e3 {[%clk 0:03:02]}  Nc6 {[%clk 0:03:01]} 4. Nf3 {[%clk 0:03:02]}  cxd4 {[%clk 0:02:59]} 5. exd4 {[%clk 0:03:02]}  Bf5 {[%clk 0:03:00]} 6. Bd3 {[%clk 0:02:57]}  Bxd3 {[%clk 0:03:00]} 7. Qxd3 {[%clk 0:02:57]}  e6 {[%clk 0:03:01]} 8. O-O {[%clk 0:02:56]}  Bd6 {[%clk 0:03:01]} 9. Bxd6 {[%clk 0:02:53]}  Qxd6 {[%clk 0:03:02]} 10. Nbd2 {[%clk 0:02:53]}  Nge7 {[%clk 0:03:01]} 11. c3 {[%clk 0:02:53]}  O-O {[%clk 0:03:01]} 12. Rfe1 {[%clk 0:02:54]}  Rab8 {[%clk 0:02:59]} 13. Ne5 {[%clk 0:02:51]}  Nxe5 {[%clk 0:02:58]} 14. Rxe5 {[%clk 0:02:46]}  b5 {[%clk 0:02:53]} 15. Rae1 {[%clk 0:02:39]}  b4 {[%clk 0:02:51]} 16. c4 {[%clk 0:02:37]}  Nc6 {[%clk 0:02:47]} 17. Rh5 {[%clk 0:02:37]}  g6 {[%clk 0:02:47]} 18. Rh4 {[%clk 0:02:37]}  dxc4 {[%clk 0:02:43]} 19. Nxc4 {[%clk 0:02:37]}  Qd5 {[%clk 0:02:42]} 20. Ne3 {[%clk 0:02:29]}  Qb5 {[%clk 0:02:26]} 21. Qd2 {[%clk 0:02:00]}  Rbd8 {[%clk 0:01:53]} 22. Ng4 {[%clk 0:01:41]}  h5 {[%clk 0:01:36]} 23. Qh6 {[%clk 0:01:04]}  Qf5 {[%clk 0:01:35]} 24. Rxh5 {[%clk 0:01:05]}  gxh5 {[%clk 0:01:30]} 25. Nf6+ {[%clk 0:01:05]}  Qxf6 {[%clk 0:01:30]} 26. Qxf6 {[%clk 0:01:05]}  Nxd4 {[%clk 0:01:05]} 27. Qg5+ {[%clk 0:01:04]}  Kh7 {[%clk 0:01:05]} 28. Qxh5+ {[%clk 0:01:05]}  Kg7 {[%clk 0:01:05]} 29. Re3 {[%clk 0:00:57]}  Rd5 {[%clk 0:00:37]} 30. Rg3+ {[%clk 0:00:39]}  Kf6 {[%clk 0:00:38]} 31. Qh4+ {[%clk 0:00:39]}  Ke5 {[%clk 0:00:35]} 32. Re3+ {[%clk 0:00:32]}  Kd6 {[%clk 0:00:31]} 33. h3 {[%clk 0:00:31]}  Rg8 {[%clk 0:00:28]} 34. Kh2 {[%clk 0:00:29]}  Nf5 {[%clk 0:00:24]} 35. Qf4+ {[%clk 0:00:29]}  Kd7 {[%clk 0:00:24]} 36. Re5 {[%clk 0:00:23]}  Rd4 {[%clk 0:00:18]} 37. Re4 {[%clk 0:00:22]}  Rd5 {[%clk 0:00:06]} 38. Rxb4 {[%clk 0:00:21]}  Nd6 {[%clk 0:00:07]} 39. Ra4 {[%clk 0:00:16]}  a5 {[%clk 0:00:06]} 40. Qe3 {[%clk 0:00:16]}  Rdg5 {[%clk 0:00:05]} 41. g3 {[%clk 0:00:15]}  Rd5 {[%clk 0:00:04]} 42. Qa7+ {[%clk 0:00:15]}  Kc6 {[%clk 0:00:04]} 43. Rxa5 {[%clk 0:00:15]}  Rxa5 {[%clk 0:00:03]} 44. Qxa5 {[%clk 0:00:00]}  Rb8 {[%clk 0:00:04]} 0-1


[Site "https://www.chess.com"]

[Event "Titled Tuesday Blitz August 22 Early 2023"]
[White "Koellner, Ruben Gideon"]
[Black "Badelka, Olga"]
[WhiteFideId "12993093"]
[BlackFideId "13509926"]
[WhiteElo "2724"]
[BlackElo "2549"]
[Result "1/2-1/2"]
[Round "5"]
[TimeControl "180+1"]
[Date "2023.08.22"]
[WhiteClock "0:00:05"]
[BlackClock "0:00:12"]
[Board "58"]

1. d4 {[%clk 0:01:57]}  Nf6 {[%clk 0:02:59]} 2. Nf3 {[%clk 0:00:49]}  e6 {[%clk 0:02:57]} 3. Nbd2 {[%clk 0:00:47]}  d5 {[%clk 0:02:57]} 4. e3 {[%clk 0:00:46]}  b6 {[%clk 0:02:57]} 5. Ne5 {[%clk 0:00:46]}  a6 {[%clk 0:02:48]} 6. f4 {[%clk 0:00:45]}  c5 {[%clk 0:02:42]} 7. c3 {[%clk 0:00:45]}  Bb7 {[%clk 0:02:40]} 8. Bd3 {[%clk 0:00:45]}  Nc6 {[%clk 0:02:36]} 9. Qf3 {[%clk 0:00:45]}  Be7 {[%clk 0:02:35]} 10. O-O {[%clk 0:00:44]}  Nd7 {[%clk 0:02:30]} 11. Qh3 {[%clk 0:00:31]}  g6 {[%clk 0:02:12]} 12. g4 {[%clk 0:00:18]}  Ncxe5 {[%clk 0:01:58]} 13. fxe5 {[%clk 0:00:19]}  h5 {[%clk 0:01:58]} 14. Nf3 {[%clk 0:00:16]}  Qc7 {[%clk 0:01:56]} 15. Bd2 {[%clk 0:00:15]}  c4 {[%clk 0:01:55]} 16. Bc2 {[%clk 0:00:15]}  O-O-O {[%clk 0:01:55]} 17. g5 {[%clk 0:00:15]}  Nb8 {[%clk 0:01:48]} 18. Qg2 {[%clk 0:00:15]}  Nc6 {[%clk 0:01:48]} 19. h4 {[%clk 0:00:15]}  b5 {[%clk 0:01:46]} 20. a3 {[%clk 0:00:15]}  a5 {[%clk 0:01:45]} 21. Rfc1 {[%clk 0:00:16]}  Kd7 {[%clk 0:01:34]} 22. Qf2 {[%clk 0:00:14]}  Ra8 {[%clk 0:01:33]} 23. Nh2 {[%clk 0:00:09]}  Rhf8 {[%clk 0:01:33]} 24. Nf1 {[%clk 0:00:09]}  Qb6 {[%clk 0:01:30]} 25. Ng3 {[%clk 0:00:06]}  b4 {[%clk 0:01:30]} 26. axb4 {[%clk 0:00:07]}  axb4 {[%clk 0:01:30]} 27. Rxa8 {[%clk 0:00:07]}  Bxa8 {[%clk 0:01:31]} 28. Ra1 {[%clk 0:00:07]}  bxc3 {[%clk 0:01:23]} 29. bxc3 {[%clk 0:00:08]}  Qb2 {[%clk 0:01:22]} 30. Rc1 {[%clk 0:00:09]}  Bb7 {[%clk 0:01:20]} 31. Qe1 {[%clk 0:00:09]}  Ra8 {[%clk 0:00:53]} 32. Qd1 {[%clk 0:00:09]}  Ra2 {[%clk 0:00:42]} 33. Nf1 {[%clk 0:00:09]}  Ba6 {[%clk 0:00:39]} 34. Bb1 {[%clk 0:00:09]}  Ra1 {[%clk 0:00:34]} 35. Bc2 {[%clk 0:00:10]}  Rxc1 {[%clk 0:00:31]} 36. Qxc1 {[%clk 0:00:11]}  Ba3 {[%clk 0:00:29]} 37. Qb1 {[%clk 0:00:08]}  Bb5 {[%clk 0:00:26]} 38. Kf2 {[%clk 0:00:07]}  Na5 {[%clk 0:00:27]} 39. Qxb2 {[%clk 0:00:06]}  Bxb2 {[%clk 0:00:27]} 40. Ke2 {[%clk 0:00:07]}  Nb3 {[%clk 0:00:25]} 41. Be1 {[%clk 0:00:08]}  Nc1+ {[%clk 0:00:24]} 42. Kd1 {[%clk 0:00:07]}  Nd3 {[%clk 0:00:23]} 43. Bd2 {[%clk 0:00:05]}  Kc6 {[%clk 0:00:17]} 44. Ng3 {[%clk 0:00:04]}  Kb6 {[%clk 0:00:15]} 45. e4 {[%clk 0:00:04]}  Nf2+ {[%clk 0:00:14]} 46. Ke2 {[%clk 0:00:04]}  Nxe4 {[%clk 0:00:12]} 47. Nxe4 {[%clk 0:00:04]}  dxe4 {[%clk 0:00:12]} 48. Bxe4 {[%clk 0:00:05]}  Bc6 {[%clk 0:00:12]} 49. Ke3 {[%clk 0:00:03]}  Bxe4 {[%clk 0:00:10]} 50. Kxe4 {[%clk 0:00:04]}  Kc6 {[%clk 0:00:11]} 51. Be1 {[%clk 0:00:04]}  Ba1 {[%clk 0:00:11]} 52. Bd2 {[%clk 0:00:04]}  Bb2 {[%clk 0:00:11]} 53. Be1 {[%clk 0:00:04]}  Ba1 {[%clk 0:00:12]} 54. Bd2 {[%clk 0:00:05]}  Bb2 {[%clk 0:00:12]} 1/2-1/2


[Site "https://www.chess.com"]

[Event "Titled Tuesday Blitz August 22 Early 2023"]
[White "Bilan, Danila"]
[Black "carokannlover213"]
[WhiteFideId "24161918"]
[WhiteElo "2528"]
[BlackElo "2719"]
[Result "0-1"]
[Round "5"]
[TimeControl "180+1"]
[Date "2023.08.22"]
[WhiteClock "0:00:00"]
[BlackClock "0:00:06"]
[Board "59"]

1. d4 {[%clk 0:03:00]}  Nf6 {[%clk 0:02:59]} 2. Nf3 {[%clk 0:03:01]}  e6 {[%clk 0:02:59]} 3. g3 {[%clk 0:02:59]}  d5 {[%clk 0:02:57]} 4. Bg2 {[%clk 0:02:58]}  Be7 {[%clk 0:02:57]} 5. O-O {[%clk 0:02:59]}  O-O {[%clk 0:02:57]} 6. c4 {[%clk 0:02:59]}  c6 {[%clk 0:02:58]} 7. Qc2 {[%clk 0:02:58]}  Ne4 {[%clk 0:02:58]} 8. Nfd2 {[%clk 0:02:50]}  f5 {[%clk 0:02:57]} 9. f3 {[%clk 0:02:49]}  Nxd2 {[%clk 0:02:50]} 10. Bxd2 {[%clk 0:02:38]}  Bf6 {[%clk 0:02:42]} 11. e3 {[%clk 0:02:28]}  Bd7 {[%clk 0:02:35]} 12. f4 {[%clk 0:02:12]}  g5 {[%clk 0:02:30]} 13. Bb4 {[%clk 0:02:05]}  Rf7 {[%clk 0:02:22]} 14. Bd6 {[%clk 0:01:58]}  gxf4 {[%clk 0:02:07]} 15. Bxf4 {[%clk 0:01:34]}  Na6 {[%clk 0:02:06]} 16. Nd2 {[%clk 0:01:30]}  Bg5 {[%clk 0:01:40]} 17. Bxg5 {[%clk 0:01:06]}  Qxg5 {[%clk 0:01:39]} 18. Qb3 {[%clk 0:01:04]}  Be8 {[%clk 0:01:19]} 19. Nf3 {[%clk 0:01:03]}  Qh6 {[%clk 0:01:10]} 20. Ne5 {[%clk 0:01:01]}  Rg7 {[%clk 0:01:09]} 21. Rf4 {[%clk 0:00:56]}  Nb8 {[%clk 0:00:44]} 22. cxd5 {[%clk 0:00:23]}  cxd5 {[%clk 0:00:43]} 23. Bxd5 {[%clk 0:00:23]}  exd5 {[%clk 0:00:27]} 24. Qxd5+ {[%clk 0:00:24]}  Kh8 {[%clk 0:00:25]} 25. Qd8 {[%clk 0:00:17]}  Qe6 {[%clk 0:00:17]} 26. Rxf5 {[%clk 0:00:09]}  Qxf5 {[%clk 0:00:10]} 27. Rf1 {[%clk 0:00:08]}  Qe6 {[%clk 0:00:05]} 28. Rf6 {[%clk 0:00:03]}  Qe7 {[%clk 0:00:05]} 29. Qxe7 {[%clk 0:00:01]}  Rxe7 {[%clk 0:00:06]} 30. Rf5 {[%clk 0:00:00]}  Nc6 {[%clk 0:00:06]} 0-1


[Site "https://www.chess.com"]

[Event "Titled Tuesday Blitz August 22 Early 2023"]
[White "Karthik Rajaa"]
[Black "Girsh, Daniel"]
[WhiteFideId "25035215"]
[BlackFideId "30949190"]
[WhiteElo "2709"]
[BlackElo "2453"]
[Result "1-0"]
[Round "5"]
[TimeControl "180+1"]
[Date "2023.08.22"]
[WhiteClock "0:01:20"]
[BlackClock "0:01:37"]
[Board "61"]

1. Nf3 {[%clk 0:03:00]}  Nf6 {[%clk 0:03:00]} 2. c4 {[%clk 0:03:00]}  e6 {[%clk 0:02:58]} 3. g3 {[%clk 0:02:59]}  d5 {[%clk 0:02:57]} 4. Bg2 {[%clk 0:03:00]}  Be7 {[%clk 0:02:55]} 5. O-O {[%clk 0:02:59]}  O-O {[%clk 0:02:56]} 6. d4 {[%clk 0:02:59]}  dxc4 {[%clk 0:02:56]} 7. Qc2 {[%clk 0:03:00]}  a6 {[%clk 0:02:56]} 8. a4 {[%clk 0:03:00]}  Bd7 {[%clk 0:02:57]} 9. Rd1 {[%clk 0:03:01]}  Bc6 {[%clk 0:02:57]} 10. Nc3 {[%clk 0:03:01]}  a5 {[%clk 0:02:52]} 11. e4 {[%clk 0:02:59]}  Na6 {[%clk 0:02:51]} 12. Ne5 {[%clk 0:02:55]}  Nb4 {[%clk 0:02:51]} 13. Qe2 {[%clk 0:02:55]}  Nd3 {[%clk 0:02:47]} 14. Nxd3 {[%clk 0:02:42]}  cxd3 {[%clk 0:02:48]} 15. Qxd3 {[%clk 0:02:41]}  e5 {[%clk 0:02:36]} 16. dxe5 {[%clk 0:02:36]}  Qxd3 {[%clk 0:02:34]} 17. Rxd3 {[%clk 0:02:36]}  Ng4 {[%clk 0:02:35]} 18. Nd5 {[%clk 0:02:30]}  Bc5 {[%clk 0:02:31]} 19. Be3 {[%clk 0:02:01]}  Bxe3 {[%clk 0:02:23]} 20. Nxe3 {[%clk 0:02:02]}  Nxe5 {[%clk 0:02:21]} 21. Rc3 {[%clk 0:02:02]}  Rfd8 {[%clk 0:02:18]} 22. Nd5 {[%clk 0:01:57]}  Rd7 {[%clk 0:02:08]} 23. f4 {[%clk 0:01:52]}  Ng6 {[%clk 0:02:08]} 24. h4 {[%clk 0:01:42]}  Bxd5 {[%clk 0:02:07]} 25. exd5 {[%clk 0:01:41]}  Rad8 {[%clk 0:01:56]} 26. Rac1 {[%clk 0:01:38]}  h5 {[%clk 0:01:43]} 27. Rxc7 {[%clk 0:01:36]}  Ne7 {[%clk 0:01:43]} 28. Rxd7 {[%clk 0:01:30]}  Rxd7 {[%clk 0:01:44]} 29. Rc5 {[%clk 0:01:30]}  Nf5 {[%clk 0:01:42]} 30. Bh3 {[%clk 0:01:28]}  g6 {[%clk 0:01:38]} 31. Rxa5 {[%clk 0:01:24]}  Rc7 {[%clk 0:01:37]} 32. Bxf5 {[%clk 0:01:24]}  gxf5 {[%clk 0:01:38]} 33. d6 {[%clk 0:01:23]}  Rc6 {[%clk 0:01:37]} 34. Rd5 {[%clk 0:01:20]} 1-0


[Site "https://www.chess.com"]

[Event "Titled Tuesday Blitz August 22 Early 2023"]
[White "Petrosian, Karlen"]
[Black "Baches Garcia, Guillermo"]
[WhiteFideId "4176146"]
[BlackFideId "2209764"]
[WhiteElo "2704"]
[BlackElo "2434"]
[Result "1-0"]
[Round "5"]
[TimeControl "180+1"]
[Date "2023.08.22"]
[WhiteClock "0:00:48"]
[BlackClock "0:00:00"]
[Board "62"]

1. e4 {[%clk 0:03:00]}  c5 {[%clk 0:02:59]} 2. Be2 {[%clk 0:02:57]}  Nc6 {[%clk 0:02:57]} 3. f4 {[%clk 0:02:57]}  e6 {[%clk 0:02:52]} 4. Nf3 {[%clk 0:02:57]}  d5 {[%clk 0:02:50]} 5. d3 {[%clk 0:02:56]}  Bd6 {[%clk 0:02:45]} 6. e5 {[%clk 0:02:54]}  Bc7 {[%clk 0:02:45]} 7. c3 {[%clk 0:02:55]}  Nge7 {[%clk 0:02:42]} 8. Be3 {[%clk 0:02:55]}  d4 {[%clk 0:02:37]} 9. Bf2 {[%clk 0:02:55]}  dxc3 {[%clk 0:02:27]} 10. bxc3 {[%clk 0:02:56]}  b6 {[%clk 0:02:17]} 11. O-O {[%clk 0:02:48]}  O-O {[%clk 0:02:17]} 12. a4 {[%clk 0:02:44]}  Qd7 {[%clk 0:02:12]} 13. Na3 {[%clk 0:02:43]}  Rd8 {[%clk 0:01:57]} 14. Nc4 {[%clk 0:02:39]}  Bb7 {[%clk 0:01:55]} 15. Bh4 {[%clk 0:02:34]}  Re8 {[%clk 0:01:43]} 16. Qc1 {[%clk 0:02:31]}  Nf5 {[%clk 0:01:34]} 17. Bf2 {[%clk 0:02:31]}  Rad8 {[%clk 0:01:29]} 18. g4 {[%clk 0:02:28]}  Nfe7 {[%clk 0:01:28]} 19. Ng5 {[%clk 0:02:25]}  Nd5 {[%clk 0:01:22]} 20. Ne4 {[%clk 0:02:21]}  Ba8 {[%clk 0:01:17]} 21. Ra2 {[%clk 0:02:11]}  Nce7 {[%clk 0:01:11]} 22. Bh4 {[%clk 0:02:06]}  Rb8 {[%clk 0:01:04]} 23. Rd1 {[%clk 0:01:44]}  Ng6 {[%clk 0:01:03]} 24. Bg3 {[%clk 0:01:44]}  Nde7 {[%clk 0:01:01]} 25. h4 {[%clk 0:01:41]}  h6 {[%clk 0:00:42]} 26. h5 {[%clk 0:01:41]}  Nf8 {[%clk 0:00:42]} 27. Bf3 {[%clk 0:01:30]}  Nd5 {[%clk 0:00:40]} 28. Kh2 {[%clk 0:01:15]}  Nh7 {[%clk 0:00:40]} 29. Rg1 {[%clk 0:01:15]}  f5 {[%clk 0:00:40]} 30. exf6 {[%clk 0:01:13]}  Nhxf6 {[%clk 0:00:39]} 31. Ne5 {[%clk 0:01:09]}  Bxe5 {[%clk 0:00:35]} 32. fxe5 {[%clk 0:01:10]}  Nxe4 {[%clk 0:00:33]} 33. Bxe4 {[%clk 0:01:11]}  Ne7 {[%clk 0:00:22]} 34. g5 {[%clk 0:01:11]}  hxg5 {[%clk 0:00:17]} 35. Qxg5 {[%clk 0:01:12]}  Nf5 {[%clk 0:00:15]} 36. Bf4 {[%clk 0:01:01]}  Qf7 {[%clk 0:00:15]} 37. Rag2 {[%clk 0:00:59]}  Kh7 {[%clk 0:00:14]} 38. Qxg7+ {[%clk 0:00:50]}  Qxg7 {[%clk 0:00:13]} 39. Rxg7+ {[%clk 0:00:50]}  Kh8 {[%clk 0:00:13]} 40. Rxa7 {[%clk 0:00:50]}  Bxe4 {[%clk 0:00:09]} 41. dxe4 {[%clk 0:00:51]}  Nh4 {[%clk 0:00:08]} 42. Kh3 {[%clk 0:00:47]}  Nf3 {[%clk 0:00:07]} 43. Rg3 {[%clk 0:00:48]}  Ne1 {[%clk 0:00:00]} 44. Bg5 {[%clk 0:00:48]} 1-0


[Site "https://www.chess.com"]

[Event "Titled Tuesday Blitz August 22 Early 2023"]
[White "Papasimakopoulos, Alexandros"]
[Black "Lacasa Diaz, Jose Antonio"]
[WhiteFideId "4244125"]
[BlackFideId "2203375"]
[WhiteElo "2701"]
[BlackElo "2307"]
[Result "1-0"]
[Round "5"]
[TimeControl "180+1"]
[Date "2023.08.22"]
[WhiteClock "0:01:53"]
[BlackClock "0:00:04"]
[Board "63"]

1. d4 {[%clk 0:02:49]}  d5 {[%clk 0:02:59]} 2. c4 {[%clk 0:02:49]}  e6 {[%clk 0:03:00]} 3. Nc3 {[%clk 0:02:48]}  c5 {[%clk 0:03:01]} 4. e3 {[%clk 0:02:47]}  Nc6 {[%clk 0:03:01]} 5. Nf3 {[%clk 0:02:47]}  Nf6 {[%clk 0:03:01]} 6. cxd5 {[%clk 0:02:47]}  exd5 {[%clk 0:03:01]} 7. Bb5 {[%clk 0:02:47]}  cxd4 {[%clk 0:03:01]} 8. Nxd4 {[%clk 0:02:46]}  Bd7 {[%clk 0:03:02]} 9. O-O {[%clk 0:02:46]}  Bd6 {[%clk 0:03:02]} 10. b3 {[%clk 0:02:45]}  O-O {[%clk 0:03:02]} 11. Bb2 {[%clk 0:02:45]}  Re8 {[%clk 0:03:02]} 12. Re1 {[%clk 0:02:42]}  Qe7 {[%clk 0:02:52]} 13. Bf1 {[%clk 0:02:40]}  a6 {[%clk 0:02:38]} 14. g3 {[%clk 0:02:39]}  Rad8 {[%clk 0:02:29]} 15. Bg2 {[%clk 0:02:39]}  Be6 {[%clk 0:02:29]} 16. Rc1 {[%clk 0:02:33]}  Nxd4 {[%clk 0:02:10]} 17. Qxd4 {[%clk 0:02:32]}  Bc5 {[%clk 0:02:07]} 18. Qh4 {[%clk 0:02:31]}  Ba7 {[%clk 0:01:51]} 19. Ne2 {[%clk 0:02:27]}  Ne4 {[%clk 0:01:47]} 20. Qxe7 {[%clk 0:02:27]}  Rxe7 {[%clk 0:01:47]} 21. Bd4 {[%clk 0:02:26]}  Bb8 {[%clk 0:01:39]} 22. Bb6 {[%clk 0:02:26]}  Rde8 {[%clk 0:01:35]} 23. Nd4 {[%clk 0:02:20]}  Bd7 {[%clk 0:01:31]} 24. Red1 {[%clk 0:02:18]}  g6 {[%clk 0:01:17]} 25. a4 {[%clk 0:02:17]}  h5 {[%clk 0:01:08]} 26. a5 {[%clk 0:02:16]}  Bd6 {[%clk 0:01:05]} 27. Ne2 {[%clk 0:02:13]}  Bc6 {[%clk 0:01:00]} 28. Nf4 {[%clk 0:02:09]}  Bxf4 {[%clk 0:00:58]} 29. gxf4 {[%clk 0:02:10]}  f5 {[%clk 0:00:42]} 30. Bf1 {[%clk 0:02:06]}  Kf7 {[%clk 0:00:40]} 31. Bxa6 {[%clk 0:02:03]}  Rd7 {[%clk 0:00:13]} 32. Bf1 {[%clk 0:01:59]}  Re6 {[%clk 0:00:12]} 33. b4 {[%clk 0:01:59]}  Ba4 {[%clk 0:00:11]} 34. Rd4 {[%clk 0:01:57]}  Nf6 {[%clk 0:00:09]} 35. b5 {[%clk 0:01:55]}  Ne4 {[%clk 0:00:04]} 36. Rxa4 {[%clk 0:01:53]} 1-0


[Site "https://www.chess.com"]

[Event "Titled Tuesday Blitz August 22 Early 2023"]
[White "Volovich, Vasily"]
[Black "Acosta Cruz, Oscar Yosimar"]
[WhiteFideId "34169676"]
[BlackFideId "5111269"]
[WhiteElo "2700"]
[BlackElo "2284"]
[Result "1-0"]
[Round "5"]
[TimeControl "180+1"]
[Date "2023.08.22"]
[WhiteClock "0:00:09"]
[BlackClock "0:00:04"]
[Board "64"]

1. e4 {[%clk 0:02:53]}  c6 {[%clk 0:02:56]} 2. Nf3 {[%clk 0:02:51]}  d5 {[%clk 0:02:50]} 3. Nc3 {[%clk 0:02:51]}  Bg4 {[%clk 0:02:43]} 4. h3 {[%clk 0:02:51]}  Bxf3 {[%clk 0:02:41]} 5. Qxf3 {[%clk 0:02:52]}  e6 {[%clk 0:02:38]} 6. d3 {[%clk 0:02:52]}  Nd7 {[%clk 0:02:35]} 7. d4 {[%clk 0:02:49]}  Qb6 {[%clk 0:02:29]} 8. Qd3 {[%clk 0:02:37]}  Bb4 {[%clk 0:02:25]} 9. Be2 {[%clk 0:02:35]}  dxe4 {[%clk 0:02:19]} 10. Qxe4 {[%clk 0:02:34]}  Ngf6 {[%clk 0:02:20]} 11. Qh4 {[%clk 0:02:32]}  O-O {[%clk 0:02:08]} 12. O-O {[%clk 0:02:32]}  e5 {[%clk 0:02:00]} 13. dxe5 {[%clk 0:02:17]}  Nxe5 {[%clk 0:01:59]} 14. Be3 {[%clk 0:02:16]}  Ng6 {[%clk 0:01:52]} 15. Qc4 {[%clk 0:01:57]}  Qa5 {[%clk 0:01:45]} 16. Bd4 {[%clk 0:01:57]}  Rfe8 {[%clk 0:01:34]} 17. a3 {[%clk 0:01:37]}  Bxc3 {[%clk 0:01:17]} 18. Bxc3 {[%clk 0:01:36]}  Qg5 {[%clk 0:01:18]} 19. f4 {[%clk 0:01:10]}  Nxf4 {[%clk 0:01:15]} 20. Rxf4 {[%clk 0:00:55]}  Rxe2 {[%clk 0:01:06]} 21. Qxe2 {[%clk 0:00:54]}  Qxf4 {[%clk 0:01:02]} 22. Rf1 {[%clk 0:00:55]}  Qd6 {[%clk 0:00:58]} 23. Bxf6 {[%clk 0:00:51]}  gxf6 {[%clk 0:00:57]} 24. Qg4+ {[%clk 0:00:27]}  Kh8 {[%clk 0:00:56]} 25. Qh4 {[%clk 0:00:27]}  Kg7 {[%clk 0:00:40]} 26. Qg4+ {[%clk 0:00:24]}  Kh8 {[%clk 0:00:40]} 27. Qh4 {[%clk 0:00:25]}  Kg7 {[%clk 0:00:40]} 28. Rf3 {[%clk 0:00:25]}  Qc5+ {[%clk 0:00:31]} 29. Kh1 {[%clk 0:00:21]}  Qe5 {[%clk 0:00:26]} 30. c3 {[%clk 0:00:14]}  Rd8 {[%clk 0:00:23]} 31. Rg3+ {[%clk 0:00:10]}  Kh8 {[%clk 0:00:22]} 32. Qg4 {[%clk 0:00:09]}  f5 {[%clk 0:00:10]} 33. Qg5 {[%clk 0:00:09]}  Rd1+ {[%clk 0:00:07]} 34. Kh2 {[%clk 0:00:10]}  Qe8 {[%clk 0:00:04]} 35. Qg7# {[%clk 0:00:09]} 1-0


[Site "https://www.chess.com"]

[Event "Titled Tuesday Blitz August 22 Early 2023"]
[White "NovoselovRoman"]
[Black "Pichot, Alan"]
[BlackFideId "110973"]
[WhiteElo "2570"]
[BlackElo "2889"]
[Result "1-0"]
[Round "5"]
[TimeControl "180+1"]
[Date "2023.08.22"]
[WhiteClock "0:00:12"]
[BlackClock "0:01:06"]
[Board "66"]

1. e4 {[%clk 0:03:00]}  c5 {[%clk 0:02:59]} 2. Nc3 {[%clk 0:03:00]}  d6 {[%clk 0:02:59]} 3. g3 {[%clk 0:03:01]}  Nc6 {[%clk 0:02:59]} 4. Bg2 {[%clk 0:03:01]}  g6 {[%clk 0:03:00]} 5. d3 {[%clk 0:03:02]}  Bg7 {[%clk 0:03:00]} 6. f4 {[%clk 0:03:02]}  Rb8 {[%clk 0:02:48]} 7. a4 {[%clk 0:03:02]}  h5 {[%clk 0:02:45]} 8. Nf3 {[%clk 0:03:00]}  Bg4 {[%clk 0:02:38]} 9. h3 {[%clk 0:03:00]}  Bxf3 {[%clk 0:02:39]} 10. Qxf3 {[%clk 0:03:01]}  Nd4 {[%clk 0:02:39]} 11. Qf2 {[%clk 0:03:02]}  Nf6 {[%clk 0:02:39]} 12. Be3 {[%clk 0:03:02]}  Nd7 {[%clk 0:02:39]} 13. O-O {[%clk 0:02:58]}  a6 {[%clk 0:02:38]} 14. f5 {[%clk 0:02:53]}  Ne5 {[%clk 0:02:34]} 15. Nd5 {[%clk 0:02:46]}  e6 {[%clk 0:02:28]} 16. Bxd4 {[%clk 0:02:42]}  cxd4 {[%clk 0:02:27]} 17. Nf4 {[%clk 0:02:20]}  O-O {[%clk 0:02:21]} 18. Kh1 {[%clk 0:02:15]}  Qg5 {[%clk 0:02:14]} 19. h4 {[%clk 0:02:06]}  Qe7 {[%clk 0:02:09]} 20. Qxd4 {[%clk 0:02:00]}  Ng4 {[%clk 0:02:02]} 21. Qb6 {[%clk 0:01:55]}  Kh7 {[%clk 0:02:00]} 22. c3 {[%clk 0:01:53]}  Be5 {[%clk 0:01:58]} 23. Bh3 {[%clk 0:01:46]}  gxf5 {[%clk 0:01:55]} 24. exf5 {[%clk 0:01:35]}  Rg8 {[%clk 0:01:55]} 25. Nxh5 {[%clk 0:01:29]}  d5 {[%clk 0:01:46]} 26. Rae1 {[%clk 0:01:09]}  Bxg3 {[%clk 0:01:46]} 27. Nxg3 {[%clk 0:01:00]}  Qxh4 {[%clk 0:01:46]} 28. Kg2 {[%clk 0:00:54]}  Nh2 {[%clk 0:01:44]} 29. Qe3 {[%clk 0:00:46]}  Nxf1 {[%clk 0:01:44]} 30. Rxf1 {[%clk 0:00:47]}  Rxg3+ {[%clk 0:01:42]} 31. Qxg3 {[%clk 0:00:39]}  Rg8 {[%clk 0:01:43]} 32. Qxg8+ {[%clk 0:00:39]}  Kxg8 {[%clk 0:01:44]} 33. fxe6 {[%clk 0:00:39]}  fxe6 {[%clk 0:01:36]} 34. Bxe6+ {[%clk 0:00:40]}  Kg7 {[%clk 0:01:37]} 35. Rf3 {[%clk 0:00:32]}  Qxa4 {[%clk 0:01:35]} 36. Bxd5 {[%clk 0:00:18]}  b5 {[%clk 0:01:34]} 37. d4 {[%clk 0:00:18]}  Qd1 {[%clk 0:01:30]} 38. Rf2 {[%clk 0:00:18]}  a5 {[%clk 0:01:26]} 39. Bf3 {[%clk 0:00:17]}  Qd3 {[%clk 0:01:25]} 40. d5 {[%clk 0:00:17]}  b4 {[%clk 0:01:25]} 41. cxb4 {[%clk 0:00:17]}  axb4 {[%clk 0:01:26]} 42. Re2 {[%clk 0:00:18]}  Qd4 {[%clk 0:01:20]} 43. Rf2 {[%clk 0:00:12]}  Kg6 {[%clk 0:01:19]} 44. Re2 {[%clk 0:00:13]}  Kg5 {[%clk 0:01:19]} 45. Rf2 {[%clk 0:00:12]}  Kh4 {[%clk 0:01:19]} 46. Re2 {[%clk 0:00:12]}  Qg7+ {[%clk 0:01:16]} 47. Kf2 {[%clk 0:00:12]}  Qd4+ {[%clk 0:01:16]} 48. Kg2 {[%clk 0:00:12]}  b3 {[%clk 0:01:06]} 49. Re4+ {[%clk 0:00:12]} 1-0


[Site "https://www.chess.com"]